fUST/lending_fUST_20250618
["ID","MTS","AMOUNT","RATE_DAILY","PERIOD"]
[366308485,1750181441565,-3890.21,0.00022974,6]
[366308487,1750181441575,-701.44,0.00022974,6]
[366308489,1750181441585,-460.0,0.00022974,6]
[366308491,1750181441595,-378.08721371,0.00022974,6]
[366308493,1750181441604,-849.9,0.00022974,6]
[366308495,1750181441614,-7110.61,0.00022974,6]
[366308497,1750181441624,-888.45,0.00022974,6]
[366308499,1750181441635,-460.0,0.00022974,6]
[366308501,1750181441644,-6024.99,0.00022974,6]
[366308503,1750181441653,-968.0,0.00022974,6]
[366308505,1750181441663,-460.0,0.00022974,6]
[366308507,1750181441672,-7162.32,0.00022974,6]
[366308509,1750181441683,-3954.93,0.00022974,6]
[366308511,1750181441693,-460.0,0.00022974,6]
[366308513,1750181441702,-875.38,0.00022974,6]
[366308515,1750181441712,-345.60704222,0.00022974,6]
[366308516,1750181441721,-460.0,0.00022974,6]
[366308518,1750181441731,-2904.42,0.00022974,6]
[366308520,1750181441741,-697.41,0.00022974,6]
[366308522,1750181441751,-5792.95,0.00022974,6]
[366308524,1750181441760,-460.0,0.00022974,6]
[366308526,1750181441770,-3427.2,0.00022974,6]
[366308528,1750181441780,-1235.37,0.00022974,6]
[366308530,1750181441790,-1365.98,0.00022974,6]
[366308532,1750181441799,-3136.65,0.00022974,6]
[366308534,1750181441809,-460.0,0.00022974,6]
[366308536,1750181441818,-460.0,0.00022974,6]
[366308538,1750181441828,-460.0,0.00022974,6]
[366308539,1750181441837,-1635.42,0.00022974,6]
[366308540,1750181441847,-460.0,0.00022974,6]
[366308541,1750181441857,-460.0,0.00022974,6]
[366308542,1750181441867,-2046.65,0.00022974,6]
[366308543,1750181441876,-1356.27,0.00022974,6]
[366308544,1750181441890,-460.0,0.00022974,6]
[366308545,1750181441902,-515.49,0.00022986,6]
[366308546,1750181441912,-160.56310986,0.00022986,5]
[366308547,1750181441922,-151.0,0.00022986,2]
[366308548,1750181441932,-156.587,0.00022986,2]
[366308549,1750181441942,-178.87756257,0.00022986,2]
[366308550,1750181441951,-500.0,0.00022986,2]
[366308551,1750181441960,-25000.0,0.00022986,2]
[366308552,1750181441970,-5000.0,0.00022986,2]
[366308553,1750181441980,-500.0,0.00022986,2]
[366308554,1750181441990,-10212.67394506,0.00022986,2]
[366308555,1750181442000,-500.0,0.00022986,2]
[366308556,1750181442009,-1591.21678193,0.00022986,2]
[366308557,1750181442019,-500.0,0.00022986,2]
[366308558,1750181442028,-500.0,0.00022986,2]
[366308559,1750181442037,-500.0,0.00022986,2]
[366308560,1750181442047,-151.0,0.00022986,2]
[366308561,1750181442056,-500.0,0.00022986,2]
[366308562,1750181442065,-151.0,0.00022986,2]
[366308563,1750181442075,-500.0,0.00022986,2]
[366308564,1750181442085,-151.0,0.00022986,2]
[366308565,1750181442094,-500.0,0.00022986,2]
[366308566,1750181442103,-151.0,0.00022986,2]
[366308567,1750181442113,-500.0,0.00022986,2]
[366308569,1750181442122,-151.0,0.00022986,2]
[366308571,1750181442132,-226.76390347,0.00022986,2]
[366308573,1750181442142,-500.0,0.00022986,2]
[366308575,1750181442151,-500.0,0.00022986,2]
[366308577,1750181442160,-500.0,0.00022986,2]
[366308579,1750181442169,-500.0,0.00022986,2]
[366308581,1750181442178,-500.0,0.00022986,2]
[366308583,1750181442188,-160.0,0.00023,7]
[366308585,1750181442197,-186.0,0.00023,7]
[366308587,1750181442207,-81843.74115584,0.00023,2]
[366308589,1750181442217,-248.90381807,0.00023,2]
[366308590,1750181442227,-1955.31773304,0.00023,2]
[366308592,1750181442236,-10043.38789823,0.00023,2]
[366308594,1750181442245,-868.4,0.00023082,6]
[366308596,1750181442255,-897.15,0.00023082,6]
[366308598,1750181442265,-5618.76,0.00023082,6]
[366308600,1750181442275,-714.47,0.00023082,6]
[366308602,1750181442284,-5885.19,0.00023082,6]
[366308604,1750181442294,-4122.58,0.00023082,6]
[366308606,1750181442303,-2085.28,0.00023082,6]
[366308608,1750181442313,-460.0,0.00023083,6]
[366308610,1750181442322,-500.0,0.00023083,6]
[366308612,1750181442332,-1428.19,0.00023083,6]
[366308614,1750181442341,-900.43,0.00023083,6]
[366308616,1750181442351,-513.28,0.00023083,6]
[366308618,1750181442360,-545.85,0.00023083,6]
[366308620,1750181442370,-1592.52,0.00023083,6]
[366308622,1750181442380,-460.0,0.00023083,6]
[366308624,1750181442391,-1340.19,0.00023083,6]
[366308626,1750181442401,-460.0,0.00023083,6]
[366308628,1750181442411,-690.13,0.00023083,6]
[366308630,1750181442420,-1180.56,0.00023083,6]
[366308632,1750181442430,-3890.21,0.00023083,6]
[366308634,1750181442440,-701.44,0.00023083,6]
[366308636,1750181442449,-460.0,0.00023083,6]
[366308638,1750181442458,-849.9,0.00023083,6]
[366308640,1750181442467,-7110.61,0.00023083,6]
[366308642,1750181442477,-888.45,0.00023083,6]
[366308644,1750181442487,-460.0,0.00023083,6]
[366308646,1750181442496,-6024.99,0.00023083,6]
[366308648,1750181442505,-968.0,0.00023083,6]
[366308650,1750181442515,-460.0,0.00023083,6]
[366308652,1750181442524,-7162.32,0.00023083,6]
[366308654,1750181442533,-3954.93,0.00023083,6]
[366308656,1750181442543,-460.0,0.00023083,6]
[366308658,1750181442552,-875.38,0.00023083,6]
[366308660,1750181442561,-460.0,0.00023083,6]
[366308662,1750181442570,-2904.42,0.00023083,6]
[366308664,1750181442580,-151.0,0.00023083,7]
[366308666,1750181442589,-697.41,0.00023083,6]
[366308668,1750181442599,-152.492134,0.00023083,7]
[366308670,1750181442607,-5792.95,0.00023083,6]
[366308672,1750181442616,-3427.2,0.00023083,6]
[366308673,1750181442625,-1235.37,0.00023083,6]
[366308675,1750181442634,-1365.98,0.00023083,6]
[366308677,1750181442644,-3136.65,0.00023083,6]
[366308679,1750181442654,-460.0,0.00023083,6]
[366308681,1750181442663,-233.1604358,0.00023083,6]
[366308683,1750181442672,-460.0,0.00023083,6]
[366308685,1750181442682,-1635.42,0.00023083,6]
[366308687,1750181442692,-460.0,0.00023083,6]
[366308689,1750181442701,-492.19778958,0.00023083,6]
[366308691,1750181442711,-2046.65,0.00023083,6]
[366308693,1750181442720,-1356.27,0.00023083,6]
[366308695,1750181442729,-460.0,0.00023083,6]
[366308697,1750181442738,-515.49,0.00023095,6]
[366308699,1750181442747,-151.73321022,0.00023096,2]
[366308701,1750181442756,-150.0,0.00023112,2]
[366308703,1750181442766,-868.4,0.00023192,6]
[366308705,1750181442775,-897.15,0.00023192,6]
[366308707,1750181442784,-5618.76,0.00023192,6]
[366308709,1750181442793,-714.47,0.00023192,6]
[366308711,1750181442803,-5885.19,0.00023192,6]
[366308713,1750181442812,-4122.58,0.00023192,6]
[366308715,1750181442822,-2085.28,0.00023192,6]
[366308717,1750181442831,-900.43,0.00023193,6]
[366308719,1750181442841,-513.28,0.00023193,6]
[366308721,1750181442850,-545.85,0.00023193,6]
[366308723,1750181442860,-1592.52,0.00023193,6]
[366308725,1750181442869,-460.0,0.00023193,6]
[366308727,1750181442878,-1340.19,0.00023193,6]
[366308729,1750181442890,-460.0,0.00023193,6]
[366308731,1750181442900,-690.13,0.00023193,6]
[366308733,1750181442909,-1180.56,0.00023193,6]
[366308735,1750181442918,-3890.21,0.00023193,6]
[366308737,1750181442927,-701.44,0.00023193,6]
[366308739,1750181442937,-460.0,0.00023193,6]
[366308741,1750181442946,-849.9,0.00023193,6]
[366308743,1750181442955,-7110.61,0.00023193,6]
[366308745,1750181442966,-888.45,0.00023193,6]
[366308747,1750181442976,-460.0,0.00023193,6]
[366308749,1750181442985,-6024.99,0.00023193,6]
[366308751,1750181442994,-968.0,0.00023193,6]
[366308753,1750181443003,-460.0,0.00023193,6]
[366308755,1750181443013,-7162.32,0.00023193,6]
[366308757,1750181443023,-3954.93,0.00023193,6]
[366308759,1750181443032,-460.0,0.00023193,6]
[366308761,1750181443041,-875.38,0.00023193,6]
[366308763,1750181443051,-460.0,0.00023193,6]
[366308765,1750181443060,-2904.42,0.00023193,6]
[366308768,1750181443069,-697.41,0.00023193,6]
[366308771,1750181443078,-5792.95,0.00023193,6]
[366308773,1750181443088,-3427.2,0.00023193,6]
[366308775,1750181443097,-1235.37,0.00023193,6]
[366308777,1750181443106,-1365.98,0.00023193,6]
[366308779,1750181443115,-3136.65,0.00023193,6]
[366308782,1750181443124,-460.0,0.00023193,6]
[366308787,1750181443135,-460.0,0.00023193,6]
[366308790,1750181443144,-1635.42,0.00023193,6]
[366308792,1750181443154,-450.46885096,0.00023193,6]
[366308794,1750181443163,-2046.65,0.00023193,6]
[366308796,1750181443173,-1356.27,0.00023193,6]
[366308798,1750181443183,-460.0,0.00023193,6]
[366308800,1750181443193,-127645.16755463,0.000232,2]
[366308802,1750181443203,-515.49,0.00023205,6]
[366308804,1750181443212,-868.4,0.00023301,6]
[366308806,1750181443224,-897.15,0.00023301,6]
[366308808,1750181443234,-5618.76,0.00023301,6]
[366308810,1750181443243,-714.47,0.00023301,6]
[366308812,1750181443253,-5885.19,0.00023301,6]
[366308814,1750181443263,-4122.58,0.00023301,6]
[366308816,1750181443273,-2085.28,0.00023301,6]
[366308818,1750181443282,-900.43,0.00023303,6]
[366308820,1750181443292,-513.28,0.00023303,6]
[366308822,1750181443301,-545.85,0.00023303,6]
[366308824,1750181443310,-1592.52,0.00023303,6]
[366308826,1750181443320,-460.0,0.00023303,6]
[366308828,1750181443330,-1340.19,0.00023303,6]
[366308830,1750181443339,-460.0,0.00023303,6]
[366308832,1750181443348,-690.13,0.00023303,6]
[366308834,1750181443358,-1180.56,0.00023303,6]
[366308836,1750181443368,-3890.21,0.00023303,6]
[366308838,1750181443378,-701.44,0.00023303,6]
[366308840,1750181443388,-460.0,0.00023303,6]
[366308842,1750181443398,-849.9,0.00023303,6]
[366308844,1750181443407,-7110.61,0.00023303,6]
[366308846,1750181443417,-888.45,0.00023303,6]
[366308848,1750181443426,-460.0,0.00023303,6]
[366308850,1750181443435,-6024.99,0.00023303,6]
[366308852,1750181443445,-968.0,0.00023303,6]
[366308854,1750181443454,-460.0,0.00023303,6]
[366308856,1750181443463,-7162.32,0.00023303,6]
[366308858,1750181443473,-3954.93,0.00023303,6]
[366308860,1750181443483,-460.0,0.00023303,6]
[366308862,1750181443492,-875.38,0.00023303,6]
[366308864,1750181443502,-460.0,0.00023303,6]
[366308866,1750181443511,-2904.42,0.00023303,6]
[366308868,1750181443520,-151.0,0.00023303,7]
[366308870,1750181443529,-697.41,0.00023303,6]
[366308872,1750181443539,-5792.95,0.00023303,6]
[366308874,1750181443548,-3427.2,0.00023303,6]
[366308876,1750181443557,-1235.37,0.00023303,6]
[366308878,1750181443567,-1365.98,0.00023303,6]
[366308880,1750181443576,-3136.65,0.00023303,6]
[366308882,1750181443585,-460.0,0.00023303,6]
[366308884,1750181443595,-460.0,0.00023303,6]
[366308887,1750181443604,-1635.42,0.00023303,6]
[366308890,1750181443613,-2046.65,0.00023303,6]
[366308893,1750181443623,-1356.27,0.00023303,6]
[366308896,1750181443632,-460.0,0.00023303,6]
[366308899,1750181443642,-515.49,0.00023314,6]
[366308902,1750181443652,-1430.19491473,0.00023349,2]
[366308905,1750181443662,-5470.9277828,0.00023349,2]
[366308907,1750181443671,-80104.21347528,0.0002335,2]
[366308909,1750181443681,-460.0,0.00023357,6]
[366308911,1750181443691,-178.8690261,0.00023357,6]
[366308913,1750181443701,-1428.19,0.00023357,6]
[366308915,1750181443710,-156.28198509,0.00023411,6]
[366308935,1750181443899,-712.11801491,0.00023411,6]
[366308937,1750181443908,-897.15,0.00023411,6]
[366308939,1750181443918,-5618.76,0.00023411,6]
[366308941,1750181443927,-714.47,0.00023411,6]
[366308943,1750181443937,-5885.19,0.00023411,6]
[366308945,1750181443946,-4122.58,0.00023411,6]
[366308947,1750181443956,-2085.28,0.00023411,6]
[366308949,1750181443966,-900.43,0.00023412,6]
[366308951,1750181443976,-513.28,0.00023412,6]
[366308953,1750181443985,-545.85,0.00023412,6]
[366308955,1750181443995,-1592.52,0.00023412,6]
[366308957,1750181444004,-460.0,0.00023412,6]
[366308959,1750181444013,-1340.19,0.00023412,6]
[366308961,1750181444023,-460.0,0.00023412,6]
[366308963,1750181444032,-690.13,0.00023412,6]
[366308965,1750181444042,-1180.56,0.00023412,6]
[366308967,1750181444051,-3890.21,0.00023412,6]
[366308969,1750181444061,-701.44,0.00023412,6]
[366308971,1750181444071,-460.0,0.00023412,6]
[366308973,1750181444080,-849.9,0.00023412,6]
[366308975,1750181444090,-7110.61,0.00023412,6]
[366308977,1750181444100,-888.45,0.00023412,6]
[366308979,1750181444110,-460.0,0.00023412,6]
[366308981,1750181444119,-6024.99,0.00023412,6]
[366308983,1750181444128,-968.0,0.00023412,6]
[366308985,1750181444139,-460.0,0.00023412,6]
[366308987,1750181444149,-7162.32,0.00023412,6]
[366308989,1750181444159,-3954.93,0.00023412,6]
[366308991,1750181444168,-460.0,0.00023412,6]
[366308993,1750181444177,-875.38,0.00023412,6]
[366308995,1750181444188,-460.0,0.00023412,6]
[366308997,1750181444197,-2904.42,0.00023412,6]
[366308998,1750181444206,-697.41,0.00023412,6]
[366309000,1750181444217,-5792.95,0.00023412,6]
[366309002,1750181444227,-3427.2,0.00023412,6]
[366309004,1750181444237,-1235.37,0.00023412,6]
[366309006,1750181444247,-1365.98,0.00023412,6]
[366309009,1750181444257,-3136.65,0.00023412,6]
[366309010,1750181444269,-460.0,0.00023412,6]
[366309012,1750181444279,-460.0,0.00023412,6]
[366309015,1750181444289,-1635.42,0.00023412,6]
[366309016,1750181444300,-2046.65,0.00023412,6]
[366309018,1750181444309,-1356.27,0.00023412,6]
[366309020,1750181444319,-474.1483619,0.00023412,6]
[366309022,1750181444328,-515.49,0.00023424,6]
[366309024,1750181444337,-151.73321022,0.00023425,2]
[366309026,1750181444347,-168.0,0.00023501,2]
[366309028,1750181444356,-868.4,0.00023521,6]
[366309030,1750181444367,-897.15,0.00023521,6]
[366309032,1750181444376,-5618.76,0.00023521,6]
[366309034,1750181444387,-714.47,0.00023521,6]
[366309036,1750181444397,-5885.19,0.00023521,6]
[366309038,1750181444406,-4122.58,0.00023521,6]
[366309040,1750181444416,-2085.28,0.00023521,6]
[366309042,1750181444426,-900.43,0.00023522,6]
[366309044,1750181444435,-513.28,0.00023522,6]
[366309046,1750181444445,-545.85,0.00023522,6]
[366309048,1750181444455,-1592.52,0.00023522,6]
[366309050,1750181444464,-460.0,0.00023522,6]
[366309052,1750181444475,-1340.19,0.00023522,6]
[366309054,1750181444484,-460.0,0.00023522,6]
[366309056,1750181444494,-690.13,0.00023522,6]
[366309058,1750181444504,-1180.56,0.00023522,6]
[366309060,1750181444514,-3890.21,0.00023522,6]
[366309062,1750181444523,-701.44,0.00023522,6]
[366309064,1750181444533,-460.0,0.00023522,6]
[366309066,1750181444543,-849.9,0.00023522,6]
[366309068,1750181444552,-7110.61,0.00023522,6]
[366309070,1750181444561,-460.0,0.00023522,6]
[366309072,1750181444570,-888.45,0.00023522,6]
[366309074,1750181444579,-6024.99,0.00023522,6]
[366309076,1750181444588,-968.0,0.00023522,6]
[366309078,1750181444597,-460.0,0.00023522,6]
[366309079,1750181444607,-7162.32,0.00023522,6]
[366309082,1750181444616,-3954.93,0.00023522,6]
[366309083,1750181444626,-460.0,0.00023522,6]
[366309086,1750181444637,-875.38,0.00023522,6]
[366309088,1750181444646,-268.33559253,0.00023522,6]
[366309090,1750181444656,-2904.42,0.00023522,6]
[366309091,1750181444665,-151.0,0.00023522,7]
[366309093,1750181444675,-697.41,0.00023522,6]
[366309096,1750181444684,-5792.95,0.00023522,6]
[366309097,1750181444694,-3427.2,0.00023522,6]
[366309099,1750181444704,-1235.37,0.00023522,6]
[366309101,1750181444713,-1365.98,0.00023522,6]
[366309103,1750181444723,-3136.65,0.00023522,6]
[366309106,1750181444733,-460.0,0.00023522,6]
[366309108,1750181444742,-460.0,0.00023522,6]
[366309110,1750181444751,-1635.42,0.00023522,6]
[366309111,1750181444761,-2046.65,0.00023522,6]
[366309113,1750181444771,-1356.27,0.00023522,6]
[366309114,1750181444780,-515.49,0.00023533,6]
[366309115,1750181444790,-5000.0,0.00023534,2]
[366309116,1750181444800,-306.0,0.00023534,2]
[366309117,1750181444810,-153.0,0.00023534,2]
[366309118,1750181444820,-52529.93230064,0.00023597,2]
[366309119,1750181444830,-2801.25434877,0.000236,2]
[366309120,1750181444839,-217.019,0.0002363,2]
[366309121,1750181444849,-868.4,0.0002363,6]
[366309122,1750181444859,-897.15,0.0002363,6]
[366309123,1750181444868,-5618.76,0.0002363,6]
[366309124,1750181444878,-714.47,0.0002363,6]
[366309125,1750181444889,-5885.19,0.0002363,6]
[366309126,1750181444899,-4122.58,0.0002363,6]
[366309127,1750181444908,-2085.28,0.0002363,6]
[366309128,1750181444922,-460.0,0.00023631,6]
[366309129,1750181444931,-7.958861,0.00023631,6]
[366309130,1750181444948,-1420.231139,0.00023631,6]
[366309131,1750181444958,-900.43,0.00023631,6]
[366309132,1750181444967,-513.28,0.00023631,6]
[366309133,1750181444977,-545.85,0.00023631,6]
[366309134,1750181444987,-1592.52,0.00023631,6]
[366309135,1750181444996,-460.0,0.00023631,6]
[366309136,1750181445006,-1340.19,0.00023631,6]
[366309137,1750181445017,-460.0,0.00023631,6]
[366309138,1750181445026,-690.13,0.00023631,6]
[366309139,1750181445036,-1180.56,0.00023631,6]
[366309140,1750181445045,-3890.21,0.00023631,6]
[366309141,1750181445055,-701.44,0.00023631,6]
[366309142,1750181445064,-460.0,0.00023631,6]
[366309143,1750181445074,-849.9,0.00023631,6]
[366309144,1750181445084,-7110.61,0.00023631,6]
[366309145,1750181445093,-460.0,0.00023631,6]
[366309146,1750181445103,-888.45,0.00023631,6]
[366309147,1750181445113,-6024.99,0.00023631,6]
[366309148,1750181445122,-968.0,0.00023631,6]
[366309149,1750181445133,-460.0,0.00023631,6]
[366309150,1750181445142,-7162.32,0.00023631,6]
[366309151,1750181445152,-3954.93,0.00023631,6]
[366309152,1750181445161,-460.0,0.00023631,6]
[366309153,1750181445171,-875.38,0.00023631,6]
[366309154,1750181445181,-2904.42,0.00023631,6]
[366309155,1750181445191,-697.41,0.00023631,6]
[366309156,1750181445200,-5792.95,0.00023631,6]
[366309157,1750181445210,-3427.2,0.00023631,6]
[366309158,1750181445222,-1235.37,0.00023631,6]
[366309159,1750181445231,-1365.98,0.00023631,6]
[366309160,1750181445240,-3136.65,0.00023631,6]
[366309161,1750181445250,-460.0,0.00023631,6]
[366309162,1750181445261,-460.0,0.00023631,6]
[366309163,1750181445271,-1635.42,0.00023631,6]
[366309164,1750181445280,-2046.65,0.00023631,6]
[366309165,1750181445291,-1356.27,0.00023631,6]
[366309166,1750181445300,-515.49,0.00023643,6]
[366309167,1750181445310,-118682.03,0.000237,2]
[366309168,1750181445320,-1081.904046,0.000237,2]
[366309169,1750181445330,-151.0,0.000237,7]
[366309170,1750181445339,-168.026106,0.00023707,3]
[366309171,1750181445349,-587.0,0.00023712,2]
[366309172,1750181445360,-587.0,0.00023712,2]
[366309173,1750181445369,-223.0315306,0.00023725,2]
[366309174,1750181445379,-151.73321022,0.00023726,2]
[366309175,1750181445389,-868.4,0.0002374,6]
[366309176,1750181445398,-897.15,0.0002374,6]
[366309177,1750181445408,-5618.76,0.0002374,6]
[366309178,1750181445417,-714.47,0.0002374,6]
[366309179,1750181445426,-5885.19,0.0002374,6]
[366309180,1750181445435,-4122.58,0.0002374,6]
[366309181,1750181445444,-2085.28,0.0002374,6]
[366309182,1750181445454,-900.43,0.00023741,6]
[366309183,1750181445463,-513.28,0.00023741,6]
[366309184,1750181445473,-545.85,0.00023741,6]
[366309185,1750181445482,-1592.52,0.00023741,6]
[366309186,1750181445491,-460.0,0.00023741,6]
[366309187,1750181445500,-1340.19,0.00023741,6]
[366309188,1750181445509,-270.0,0.00023741,6]
[366309189,1750181445518,-690.13,0.00023741,6]
[366309190,1750181445528,-1180.56,0.00023741,6]
[366309191,1750181445537,-3890.21,0.00023741,6]
[366309192,1750181445546,-701.44,0.00023741,6]
[366309193,1750181445555,-460.0,0.00023741,6]
[366309194,1750181445565,-849.9,0.00023741,6]
[366309195,1750181445574,-7110.61,0.00023741,6]
[366309196,1750181445583,-460.0,0.00023741,6]
[366309197,1750181445592,-888.45,0.00023741,6]
[366309198,1750181445602,-6024.99,0.00023741,6]
[366309199,1750181445611,-968.0,0.00023741,6]
[366309200,1750181445622,-460.0,0.00023741,6]
[366309201,1750181445635,-7162.32,0.00023741,6]
[366309202,1750181445645,-3954.93,0.00023741,6]
[366309203,1750181445654,-460.0,0.00023741,6]
[366309204,1750181445663,-875.38,0.00023741,6]
[366309205,1750181445673,-2904.42,0.00023741,6]
[366309206,1750181445683,-697.41,0.00023741,6]
[366309207,1750181445692,-5792.95,0.00023741,6]
[366309208,1750181445701,-3427.2,0.00023741,6]
[366309209,1750181445710,-1235.37,0.00023741,6]
[366309210,1750181445719,-1365.98,0.00023741,6]
[366309211,1750181445729,-3136.65,0.00023741,6]
[366309212,1750181445739,-469.81846601,0.00023741,6]
[366309214,1750181445749,-460.0,0.00023741,6]
[366309216,1750181445758,-1635.42,0.00023741,6]
[366309218,1750181445768,-2046.65,0.00023741,6]
[366309220,1750181445778,-1356.27,0.00023741,6]
[366309222,1750181445788,-160.0,0.0002375,2]
[366309223,1750181445797,-515.49,0.00023753,6]
[366309224,1750181445807,-152.087997,0.00023753,7]
[366309225,1750181445816,-151.0,0.00023753,7]
[366309226,1750181445826,-151.0,0.00023753,7]
[366309227,1750181445836,-2801.25434869,0.00023767,2]
[366309228,1750181445845,-158.9615139,0.000238,2]
[366309229,1750181445854,-153.0,0.000238,2]
[366309230,1750181445863,-177.1110308,0.000238,2]
[366309231,1750181445873,-153.0,0.000238,2]
[366309232,1750181445883,-574.1078115,0.000238,2]
[366309233,1750181445894,-153.0,0.000238,2]
[366309234,1750181445903,-153.0,0.000238,2]
[366309235,1750181445912,-229.94211981,0.00023846,2]
[366309236,1750181445922,-868.4,0.00023849,6]
[366309237,1750181445931,-897.15,0.00023849,6]
[366309238,1750181445941,-5618.76,0.00023849,6]
[366309239,1750181445950,-714.47,0.00023849,6]
[366309240,1750181445960,-5885.19,0.00023849,6]
[366309242,1750181445969,-3690.52760214,0.00023849,6]
[366309245,1750181446066,-249.993024,0.00022117,2]
[366309246,1750181446078,-4750.006976,0.00022117,2]
[366309248,1750181446088,-460.0,0.00022645,6]
[366309249,1750181446097,-151.0,0.00023083,7]
[366309250,1750181446107,-185.755673,0.00023303,7]
[366309251,1750181446116,-432.05239786,0.00023849,6]
[366309252,1750181446125,-2085.28,0.00023849,6]
[366309253,1750181446135,-900.43,0.0002385,6]
[366309254,1750181446144,-513.28,0.0002385,6]
[366309255,1750181446153,-545.85,0.0002385,6]
[366309256,1750181446163,-1592.52,0.0002385,6]
[366309257,1750181446173,-502.05351543,0.0002385,6]
[366309258,1750181446182,-1340.19,0.0002385,6]
[366309259,1750181446192,-690.13,0.0002385,6]
[366309260,1750181446202,-1180.56,0.0002385,6]
[366309261,1750181446212,-3890.21,0.0002385,6]
[366309262,1750181446225,-701.44,0.0002385,6]
[366309263,1750181446234,-460.0,0.0002385,6]
[366309264,1750181446243,-849.9,0.0002385,6]
[366309265,1750181446252,-7110.61,0.0002385,6]
[366309266,1750181446261,-460.0,0.0002385,6]
[366309267,1750181446271,-888.45,0.0002385,6]
[366309268,1750181446397,-6024.99,0.0002385,6]
[366309269,1750181446407,-968.0,0.0002385,6]
[366309270,1750181446416,-460.0,0.0002385,6]
[366309271,1750181446425,-7162.32,0.0002385,6]
[366309272,1750181446435,-3954.93,0.0002385,6]
[366309273,1750181446445,-460.0,0.0002385,6]
[366309274,1750181446454,-875.38,0.0002385,6]
[366309275,1750181446463,-2904.42,0.0002385,6]
[366309276,1750181446474,-697.41,0.0002385,6]
[366309277,1750181446483,-5792.95,0.0002385,6]
[366309278,1750181446493,-1235.37,0.0002385,6]
[366309279,1750181446502,-3427.2,0.0002385,6]
[366309280,1750181446512,-1365.98,0.0002385,6]
[366309281,1750181446521,-3136.65,0.0002385,6]
[366309282,1750181446530,-460.0,0.0002385,6]
[366309283,1750181446540,-1635.42,0.0002385,6]
[366309284,1750181446549,-2046.65,0.0002385,6]
[366309285,1750181446558,-1356.27,0.0002385,6]
[366309286,1750181446568,-515.49,0.00023862,6]
[366309287,1750181446578,-500.0,0.00023899,6]
[366309290,1750181446588,-500.0,0.00023899,6]
[366309291,1750181446597,-158.9615139,0.000239,2]
[366309293,1750181446606,-177.1110308,0.000239,2]
[366309295,1750181446615,-574.1078115,0.000239,2]
[366309297,1750181446624,-158.7827994,0.000239,2]
[366309299,1750181446635,-574.1078115,0.000239,2]
[366309301,1750181446645,-177.1110308,0.000239,2]
[366309304,1750181446654,-153.0,0.000239,2]
[366309306,1750181446663,-1139.2239969,0.000239,2]
[366309308,1750181446672,-353.0427388,0.000239,2]
[366309310,1750181446682,-153.0,0.000239,2]
[366309312,1750181446691,-153.0,0.000239,2]
[366309314,1750181446700,-460.0,0.00023905,6]
[366309316,1750181446709,-1412.77210311,0.00023905,6]
[366309335,1750181446881,-430.0,0.00021986,6]
[366309337,1750181446893,-430.0,0.00021986,6]
[366309339,1750181446902,-500.0,0.00022096,2]
[366309341,1750181446911,-500.0,0.00022096,2]
[366309343,1750181446920,-500.0,0.00022096,2]